Cogmind - Beta 16.1 *** ADVENTURER MODE // 2026.02.14 @ 02:37:52 Player: Rudolf Result: Destroyed by UM-DJX(R) with Subdweller Laser Performance ------------- Evolutions (0) 0 Regions Visited (3) 600 Robots Destroyed (16) 80 Value Destroyed (436) 436 Prototype IDs (0) 0 Alien Tech Used (0) 0 Bonus (0) 0 TOTAL SCORE: 1116 Bonus ------- None Cogmind --------- Core Integrity 0/250 Matter 290/300 Energy 98/100 System Corruption 0% Temperature Cool (6) Movement Core (50) Location -10/Subcaves Parts ------- > --- POWER (1) -------- (None) > --- PROPULSION (2) --- (None) > --- UTILITY (2) ------ Signal Interpreter ECM Suite > --- WEAPON (2) ------- Light Assault Rifle > --- INVENTORY (5) ---- Subdweller Power Source Subdweller Optics Signal Interpreter Scrap Shield Fragment (49) Peak State ------------ > --- POWER ------------ Light Ion Engine > --- PROPULSION ------- Aluminum Leg Aluminum Leg > --- UTILITY ---------- Signal Interpreter ECM Suite > --- WEAPON ----------- Medium Laser Assault Rifle > --- INVENTORY -------- Flight Unit Small Storage Unit Signal Interpreter EM Pulse Gun Light Assault Rifle [Rating: 7] Favorites ----------- Power Light Ion Engine Engine Light Ion Engine Propulsion Aluminum Leg Leg Aluminum Leg Utility Signal Interpreter Device ECM Suite Processor Signal Interpreter Weapon Assault Rifle Energy Gun Medium Laser Ballistic Gun Assault Rifle Build | -11 -10 -10 -10 ------- Run | Yrd Mat Min Sub Slots Evolved . | . . . . Power . | . . . . Propulsion . | . . . . Utility . | . . . . Weapon . | . . . . Parts Attached 11 | 5 1 3 2 Power 2 | 1 . 1 . Engine 2 | 1 . 1 . Core . | . . . . Reactor . | . . . . Propulsion 2 | 2 . . . Treads . | . . . . Leg 2 | 2 . . . Wheel . | . . . . Hover . | . . . . Flight . | . . . . Utility 2 | . 1 1 . Device 1 | . . 1 . Storage . | . . . . Processor 1 | . 1 . . Hackware . | . . . . Protection . | . . . . Artifact . | . . . . Weapon 5 | 2 . 1 2 Energy Gun 2 | . . 1 1 Energy Cannon . | . . . . Ballistic Gun 3 | 2 . . 1 Ballistic Cannon . | . . . . Launcher . | . . . . Special Weapon . | . . . . Impact Weapon . | . . . . Slashing Weapon . | . . . . Piercing Weapon . | . . . . Special Melee Weapon . | . . . . Unidentified Prototypes . | . . . . Parts Lost 8 | . . 2 6 Power 2 | . . 1 1 Propulsion 2 | . . . 2 Utility . | . . . . Weapon 4 | . . 1 3 Highest Loss Streak 5 | . . 2 5 To Critical Strikes . | . . . . Average Backups 4 | 3 5 4 4 Power . | . 1 . . Propulsion . | 1 . . . Utility 1 | . 1 2 2 Weapon 1 | . 1 1 1 Tool/Special . | . . . . Unused Backups 7 | . 2 . 5 Power 1 | . . . 1 Propulsion 3 | . 2 . 1 Utility 3 | . . . 3 Weapon . | . . . . Tool/Special . | . . . . Average Slot Usage (%) 92 | . 83 89 99 Engine 13 | . 14 13 14 Leg 27 | . 28 28 27 Device 7 | . . 4 14 Processor 13 | . 12 14 14 Energy Gun 10 | . . 8 15 Ballistic Gun 17 | . 28 18 12 Peak Build Rating 7 | 5 6 7 7 Average Rating 6 | 3 5 6 6 On Entrance 4 | . 5 6 7 Avg Prop Armor Cover (%) . | . . . . Naked Turns . | . . . . Heaviest Build 9 | 8 8 9 9 Greatest Support 20 | 20 20 20 20 Greatest Overweight (x) 1 | 1 . . . Average Overweight (x) . | . . . . Largest Inventory Capacity 5 | 5 5 5 5 Average Capacity 5 | 5 5 5 5 Most Carried 5 | 5 5 5 5 Average Carried 4 | 4 4 4 4 Final Capacity 5 | 5 5 5 5 Final Carried 5 | 5 5 5 4 Class Distribution -------------------- 100% | Mutant Dominant Class ---------------- Mutant | -10/Materials Mutant | -10/Mines Mutant | -10/Subcaves Resources | -11 -10 -10 -10 ----------- Run | Yrd Mat Min Sub Matter Collected 411 | 226 82 85 18 Remotely . | . . . . Salvage Created 601 | 23 85 192 301 Parts 36 | 3 1 9 23 Haulers Intercepted . | . . . . Recyclers Shooed . | . . . . Parts Field Recycled . | . . . . Retrieved Matter . | . . . . Parts Self-Destructed 13 | . . . 13 Prevented . | . . . . Parts Restored . | . . . . Kills | -11 -10 -10 -10 ------- Run | Yrd Mat Min Sub Combat Hostiles Destroyed 15 | . 2 6 7 Guns 15 | . 2 6 7 Classes Destroyed 4 | 1 1 1 1 Tunneler 1 | 1 . . . Swarmer 6 | . . 3 3 Grunt 5 | . 2 3 . Subdweller 4 | . . . 4 Best Kill Streak 3 | 1 2 3 3 Combat Bots Only 3 | . 2 3 3 Max Kills in Single Turn 1 | 1 1 1 1 Gunslinging . | . . . . Exploded . | . . . . Melee . | . . . . Uniques/NPCs Destroyed . | . . . . Combat | -11 -10 -10 -10 -------- Run | Yrd Mat Min Sub Hostile Shots Fired 106 | . 24 39 43 Missed 31 | . 9 8 14 Hits 75 | . 15 31 29 Projectile 75 | . 15 31 29 Critical Strikes 2 | . . . 2 Damage Taken 886 | . 149 283 454 Core 250 | . 32 37 181 Absorbed by Shields . | . . . . Ignored by Resistances 255 | . 42 85 128 Core Remaining (%) 100 | 100 . . . Volleys Fired 57 | 2 12 18 25 Largest 2 | 2 2 2 2 Hottest 90 | 40 40 70 90 Shots Fired 109 | 4 24 35 46 Gun 109 | 4 24 35 46 Cannon . | . . . . Launcher . | . . . . Special . | . . . . Kinetic 73 | 4 24 27 18 Thermal 30 | . . 8 22 Explosive . | . . . . Electromagnetic 6 | . . . 6 Robot Hit Streak 22 | 3 10 11 22 Robot Miss Streak 2 | . 2 2 2 Penetration Max . | . . . . Secondary Targets 3 | . . 2 1 Max Gunslinging Chain 1 | . . 1 1 Shots Hit Robots 87 | 3 17 28 39 Core Hits 33 | 1 5 11 16 Critical Kills . | . . . . Critical Parts Destroyed 1 | . 1 . . Critical Strikes 5 | . 1 1 3 Burn 4 | . . 1 3 Destroy 1 | . 1 . . Melee Attacks . | . . . . Impact . | . . . . Slashing . | . . . . Piercing . | . . . . Sneak Attacks . | . . . . Combat Hostiles . | . . . . Follow-up Attacks . | . . . . Damage Inflicted 1003 | 37 191 331 444 Guns 995 | 34 191 326 444 Cannons . | . . . . Explosions . | . . . . Melee . | . . . . Ramming 8 | 3 . 5 . Kinetic 627 | 34 191 276 126 Thermal 303 | . . 50 253 Explosive . | . . . . Electromagnetic 65 | . . . 65 Impact . | . . . . Slashing . | . . . . Piercing . | . . . . Highest Corruption . | . . . . Average Corruption . | . . . . Corruption Purged . | . . . . Corruption Blocked . | . . . . Overload Shots . | . . . . Overflow Damage . | . . . . Projectiles . | . . . . Explosions . | . . . . Melee . | . . . . Knockbacks . | . . . . Impact . | . . . . Kinetic . | . . . . Secondary . | . . . . Self-Inflicted Damage . | . . . . Shots . | . . . . Rammed . | . . . . Targets Rammed 3 | 2 . 1 . Kicked 3 | 2 . 1 . Crushed . | . . . . Highest Temperature 54 | . 21 54 7 Average Temperature 16 | . 10 21 3 Received Heat Transfer 435 | . 111 156 168 Siege Activations . | . . . . Martial Activations . | . . . . Shielding Activations . | . . . . Robots Disrupted . | . . . . Combat Hostiles . | . . . . Robots Corrupted . | . . . . Combat Hostiles . | . . . . Parts Fried . | . . . . Impact Corruptions . | . . . . Robots Melted . | . . . . Combat Hostiles . | . . . . Parts Melted 1 | . . . 1 Heat Transferred 1184 | . . 222 962 Parts Sabotaged . | . . . . Parts Stolen . | . . . . Parts Stripped . | . . . . Power Chain Reactions . | . . . . Alert | -11 -10 -10 -10 ------- Run | Yrd Mat Min Sub Maximum Alert Level . | . . . . Low Security (%) 100 | 100 100 100 . Level 1 . | . . . . Level 2 . | . . . . Level 3 . | . . . . Level 4 . | . . . . Level 5 . | . . . . High Security . | . . . . Max Security . | . . . . Peak Influence 95 | 5 40 95 . Initial . | . . . . Average 21 | . 12 29 . Influence Increases 290 | 5 50 165 70 Destroy 0b10 Robot/C 220 | . 40 120 60 Destroy 0b10 Robot/NC 5 | 5 . . . Destroy Leader 50 | . 10 30 10 Lose Combat Pursuer 15 | . . 15 . Influence Decreases 290 | 5 50 165 70 Time Decay 270 | 5 50 145 70 Lost Part 20 | . . 20 . Squads Dispatched . | . . . . Investigation . | . . . . Extermination . | . . . . Reinforcement . | . . . . Assault . | . . . . Garrison . | . . . . Intercept . | . . . . Searches Triggered . | . . . . Construction Impeded . | . . . . Haulers Reinforced . | . . . . Active Scanning Responses . | . . . . Cargo Convoy Interrupts . | . . . . Stealth | -11 -10 -10 -10 --------- Run | Yrd Mat Min Sub Distress Signals . | . . . . Communications Jammed . | . . . . Distress Signals . | . . . . Times Spotted 20 | . 4 7 9 Peak Tracking Total 3 | . 3 3 3 Tactical Retreats 2 | . . 1 1 ECM-based Alert Blocks 1 | . . . 1 Traps | -11 -10 -10 -10 ------- Run | Yrd Mat Min Sub Traps Triggered . | . . . . Indirectly . | . . . . Trap Hack Attempts . | . . . . Triggered . | . . . . Disarmed . | . . . . Reprogrammed . | . . . . Reused . | . . . . Traps Extracted . | . . . . Installed . | . . . . Triggered . | . . . . Machines | -11 -10 -10 -10 ---------- Run | Yrd Mat Min Sub Machines Disabled . | . . . . Max in Single Turn . | . . . . Machines Repaired . | . . . . Machines Dismantled . | . . . . Machines Sabotaged . | . . . . Overloaded Fab Kills . | . . . . Hacking | -11 -10 -10 -10 --------- Run | Yrd Mat Min Sub Machines Accessed 1 | . 1 . . Terminals 1 | . 1 . . Fabricators . | . . . . Repair Stations . | . . . . Recycling Units . | . . . . Scanalyzers . | . . . . Garrison Access . | . . . . Total Hacks 3 | . 3 . . Successful . | . . . . Failed 3 | . 3 . . Catastrophic . | . . . . Database Lockouts . | . . . . Manual 3 | . 3 . . Terminals 3 | . 3 . . Fabricators . | . . . . Repair Stations . | . . . . Recycling Units . | . . . . Scanalyzers . | . . . . Garrison Access . | . . . . Terminal Hacks . | . . . . Fabricator Hacks . | . . . . Repair Station Hacks . | . . . . Recycling Unit Hacks . | . . . . Scanalyzer . | . . . . Garrison Access Hacks . | . . . . Unauthorized Hacks . | . . . . Terminals . | . . . . Fabricators . | . . . . Repair Stations . | . . . . Recycling Units . | . . . . Scanalyzers . | . . . . Garrison Access . | . . . . Data Cores Recovered . | . . . . Used . | . . . . Hacking Detections 1 | . 1 . . Full Trace Events . | . . . . Feedback Events . | . . . . Feedback Blocked . | . . . . Robot Schematics Acquired . | . . . . Robots Built . | . . . . Authchips . | . . . . Time . | . . . . Total Robot Build Rating . | . . . . Part Schematics Acquired . | . . . . Parts Built . | . . . . Authchips . | . . . . Time . | . . . . Total Part Build Rating . | . . . . Part Studies Acquired . | . . . . Parts Repaired . | . . . . Time . | . . . . Parts Recycled . | . . . . Recycled Matter . | . . . . Retrieved Matter . | . . . . Retrieved Components . | . . . . Parts Scanalyzed . | . . . . Part Schematics Acquired . | . . . . Parts Damaged . | . . . . Bothacking | -11 -10 -10 -10 ------------ Run | Yrd Mat Min Sub Used RIF Installer . | . . . . Robots Hacked . | . . . . Non-combat . | . . . . Combat . | . . . . Robot Hacks Applied . | . . . . Relay Couplers Released . | . . . . Fabnet Peak Effective % . | . . . . Robots Rewired . | . . . . Allies Hacked . | . . . . Hacks Repelled . | . . . . Allies | -11 -10 -10 -10 -------- Run | Yrd Mat Min Sub Total Allies . | . . . . Largest Group . | . . . . Highest-Rated Group . | . . . . Highest-Rated Ally . | . . . . Total Orders . | . . . . Ally Attacks . | . . . . Total Damage . | . . . . Kills . | . . . . Allies Corrupted . | . . . . Allies Melted . | . . . . Intel | -11 -10 -10 -10 ------- Run | Yrd Mat Min Sub Active Infowar (turns) 623 | . . 145 478 ECM 623 | . . 145 478 Robot Analysis Total . | . . . . Derelict Logs Recovered 2 | . . 2 . Drone Launches . | . . . . Drone Recoveries . | . . . . Exploration | -11 -10 -10 -10 ------------- Run | Yrd Mat Min Sub Turns Passed 1187 | 86 172 451 478 Spaces Moved 822 | 69 112 317 324 Core 29 | 29 . . . Treads . | . . . . Legs 793 | 40 112 317 324 Wheels . | . . . . Hover . | . . . . Flight . | . . . . Fastest Speed 50 | 50 120 120 120 Average Speed 117 | 92 120 120 120 Slowest Speed 120 | 120 120 120 120 Overloaded Moves . | . . . . Propulsion Burnouts . | . . . . Robots Hopped . | . . . . Potential Cave-ins . | . . . . Cave-ins Triggered . | . . . . Exploration Rate (%) 34 | 3 28 74 34 Regions Visited 3 Branch Regions 2 Pre-discovered Areas 1 | . . 1 . Known Exits Taken 2 | . 1 1 . Unknown Exits Taken 1 | 1 . . . Scrap Searched 1 | . . 1 . Spaces Dug . | . . . . Terrain Destroyed . | . . . . Melee . | . . . . Projectile . | . . . . AOE . | . . . . Terrain Rammed . | . . . . Walls Destroyed . | . . . . Machines Disabled . | . . . . Actions | -11 -10 -10 -10 --------- Run | Yrd Mat Min Sub Total 938 | 87 128 353 370 Wait 27 | . . 13 14 Move 819 | 68 111 316 324 Hop . | . . . . Pick Up 17 | 10 2 2 3 Fast Attach 2 | . 1 1 . Attach 9 | 5 . 2 2 Detach . | . . . . Swap . | . . . . Drop 4 | . 2 . 2 Fire 57 | 2 12 18 25 Melee . | . . . . Ram . | . . . . Kick 3 | 2 . 1 . Crush . | . . . . Escape Stasis . | . . . . Rewire . | . . . . Trap . | . . . . Miscellaneous . | . . . . Route ------- -11/Scrapyard -10/Materials -10/Mines (discovered 3 exits: *Mat x2 / *Sub) -10/Subcaves History --------- Turn | Location | Event 15 | -11/Scrapyard | Discovered new exit (range 15) 87 | -11/Scrapyard | Entered Materials 240 | -10/Materials | Discovered new exit (range 11) 258 | -10/Materials | Identified exit to Mines 259 | -10/Materials | Entered Mines 268 | -10/Mines | Met a Derelict bent on vengeance 277 | -10/Mines | Discovered new exit (range 8) 286 | -10/Mines | Identified exit to Materials 304 | -10/Mines | Learned location of Zion (-6) 310 | -10/Mines | Build established: Mutant 572 | -10/Mines | Identified exit to Subcaves 585 | -10/Mines | Discovered exit to Materials (range 15) 710 | -10/Mines | Entered Subcaves 717 | -10/Subcaves | Shifting Twisted Machinery released Flamer 868 | -10/Subcaves | A swath of the cavern ceiling suddenly collapsed 1036 | -10/Subcaves | A swath of the cavern ceiling suddenly collapsed 1127 | -10/Subcaves | Core integrity fell below 50% 1177 | -10/Subcaves | Core integrity fell below 20% 1188 | -10/Subcaves | Destroyed by UM-DJX(R) with Subdweller Laser Last Messages --------------- 00850_ Acquired 9 matter. 00851_ Lgt. Assault Rifle fries itself beyond repair. 00860_ Lgt. Ion Engine fries itself beyond repair. 00861_ Lgt. Assault Rifle fries itself beyond repair. A swath of the cavern ceiling suddenly collapses. 00880_ FT-1TU(R) suffers critical hit (Burn). 00886_ FT-1TU(R) destroyed. 00888_ C9-99U(u) builds Twisted Machinery. A swath of the cavern ceiling suddenly collapses. 01101_ Assault Rifle destroyed. 01120_ YN-ZG2(R) suffers critical hit (Burn). 01123_ YN-ZG2(R) destroyed. 01129_ M5-SKQ(R) suffers critical hit (Burn). 01129_ M5-SKQ(R) destroyed. 01136_ Acquired Sub. Power Source. 01166_ EM Pulse Gun destroyed. 01168_ Aluminum Leg destroyed. 01182_ Med. Laser destroyed. 01184_ Lgt. Ion Engine destroyed. 01185_ M1-PYQ(R) destroyed. Map ----- +----------------------------------------------------+ | ?????????????????????????????????????????????????? | | ?????????????????????????????????????????????????? | | ?????????????????????????????????????????????????? | | ?????????????????????????????????????????????????? | | ?????????????????????????????????????????????????? | | ?????????????????????????????????????????????????? | | ?????????????????????????????????????????????????? | | ?????????????????????????????????????????????????? | | ?????????????????????????????????????????????????? | | ?????????????????????????????????????????????????? | | ?????????????????????????????????????????????????? | | ?????????????????????????????????????????????????? | | ???????????????????# ????????? ??????????????????? | | ???????????????????# ????????? ??????????????????? | | ??????????????????## ???????? ????????????????? | | ??????????????????# ?#####?? ?????????????????? | | ?????????????????## ?# ??? ?????????????????? | | ????????????????## ## ??? ?????????????????? | | ???????????? ### ??? ?????????????????? | | ????????????? ?## #?????????????????? | | ?????????????# #?# ??????????????????? | | ??????????????# #?# ??????????????????? | | ???????????????# ## ??????????????????? | | ???????????????# *!## ####???????????????? | | ?????????????????????## [%## # ###?????????????? | | ?????????????????????# @# # ###???????????? | | ??????????????????#??## # ""#???????????? | | ?????????????????## ### # #????????????????? | | ?????????????????# R ##????????????????? | | ?????????????????### #?????????????????? | | ???????????????????## #?????????????????? | | ????????????????????# ##????????????????? | | ????????????????????# ### ##???????????????? | | ????????????????????##??##### ##??????????????? | | ????????????????????????????#!& "#??????????????? | | ?????????????????????????####%& ##??????????????? | | ????????????????????????## &&&&###???????????????? | | ????????????????????????# !%##???????###???????? | | ????????????????????????# &#????????# ???????? | | ????????????????????????# #????????# ####???? | | ????????????????????????# ##????????# ##??? | | ???????????????????????## #####?????? ##?? | | ???????????????????????# ## #???????# ### | | ???????????????????????# ###???### | | ???????????????????????# ##?## | | ???????????????????????# ## ### ## | | ???????????????????????## #### ## #? | | ????????????????????????## #??# ##### #? | | ?????????????????????????# #?# ## #??## #? | | ?????????????????????????# ## ### ### #? | +----------------------------------------------------+ Best States ------------- Heat Dissipation 25 Energy Generation 10 Energy Capacity 250 Matter Stores 300 Matter Capacity 300 Sight Range 16 Terrain Scan Density 10 ECM Strength 1 Resistance: KI 20 Resistance: TH 20 Resistance: EX 20 Resistance: EM 20 Resistance: I 20 Resistance: S 20 Resistance: P 20 Evasion (%) 55 Offensive Hacking 10 Item Schematics ----------------- None Robot Schematics ------------------ None Fabricated ------------ Nothing Repaired ---------- Nothing Studied --------- None Alien Tech Used ----------------- None Achievements -------------- There's More Where That Came From Challenges ------------ None Game ------ Seed ThrowingFlightLayer Manual? 0 Play Time 00:15:29 Cumulative 70.3 hours Start 2026.02.14 @ 02:16:30 End 2026.02.14 @ 02:37:52 Sessions 2 Manual Loads 0 Difficulty Adventurer Special Mode None Game No. 42 Rogue 0 Adventurer 42 Explorer 0 Win Type - Total 4 Types 2/0/1/1/0/0/0/0/0/0 Lore% 52 Gallery% 55 Achievement% 27 Wizard Run 0 Options --------- Layout 0 ASCII 1 Keyboard 0 Movement Numpad Keybinds 0 Fullscreen 1 Font 18/SmallcapsGlow Map View 76x50 Zoom Use 0% Tactical HUD 1 Map Filters NONE Filters NONE Steam 1 RUN: 1da17f36-0154-4a15-9b12-511765f60086